bitfinex/quotes_SOLUSD_20220207
["timestamp","ask_amount","ask_price","bid_price","bid_amount"]
[1644218574701,49.4993803,118.34,118.28,41.53762938]
[1644218575103,43.4993803,118.34,118.28,41.53762938]
[1644218575502,43.4993803,118.34,118.28,0.25]
[1644218575705,49.7493803,118.34,118.27,12.46]
[1644218576006,43.7493803,118.34,118.27,12.46]
[1644218576405,43.7493803,118.34,118.28,45.63729212]
[1644218576605,49.4993803,118.34,118.28,45.63729212]
[1644218576806,49.4993803,118.34,118.28,45.88729212]
[1644218577007,43.4993803,118.34,118.28,47.64484263]
[1644218578007,23.0528,118.35,118.28,47.64484263]
[1644218578206,23.0528,118.35,118.28,60.34184263]
[1644218578407,23.0528,118.35,118.28,66.34184263]
[1644218579006,59.3750909,118.35,118.28,66.34184263]
[1644218579608,59.3750909,118.35,118.28,78.55184263]
[1644218580210,59.3750909,118.35,118.28,72.55184263]
[1644218582613,59.3750909,118.35,118.28,78.55184263]
[1644218586922,23.0528,118.35,118.28,78.55184263]
[1644218596330,23.0528,118.35,118.28,65.85484263]
[1644218598754,23.3028,118.35,118.28,65.85484263]
[1644218598954,23.0528,118.35,118.28,59.85484263]
[1644218599153,23.3028,118.35,118.28,59.85484263]
[1644218601158,24.50335393,118.35,118.28,59.85484263]
[1644218601360,29.3028,118.35,118.28,59.85484263]
[1644218601557,23.3028,118.35,118.28,59.85484263]
[1644218602559,24.50335393,118.35,118.28,59.85484263]
[1644218602960,23.3028,118.35,118.28,59.85484263]
[1644218603160,24.50335393,118.35,118.28,59.85484263]
[1644218603861,24.25335393,118.35,118.28,59.85484263]
[1644218604061,23.0528,118.35,118.28,78.53054263]
[1644218605665,23.0528,118.35,118.28,72.53054263]
[1644218606067,23.0528,118.35,118.28,78.53054263]
[1644218607966,23.0528,118.35,118.28,65.85484263]
[1644218609168,23.0528,118.35,118.28,20.21755051]
[1644218609671,24.25335393,118.35,118.28,20.21755051]
[1644218609869,24.50335393,118.35,118.28,20.21755051]
[1644218610069,24.50335393,118.35,118.28,19.96755051]
[1644218610271,24.25335393,118.35,118.28,19.96755051]
[1644218610573,23.0528,118.35,118.28,19.96755051]
[1644218610770,1.20055393,118.36,118.28,19.96755051]
[1644218610975,47.13498457,118.37,118.28,42.69535051]
[1644218611173,53.13498457,118.37,118.28,42.69535051]
[1644218611370,53.13498457,118.37,118.28,42.94535051]
[1644218611772,53.38498457,118.37,118.28,42.94535051]
[1644218612174,25.67335393,118.36,118.28,36.94535051]
[1644218612771,30.4381,118.36,118.28,36.94535051]
[1644218613976,30.4381,118.36,118.28,36.69535051]
[1644218614174,30.4381,118.36,118.28,42.69535051]
[1644218614372,6.0,118.36,118.28,55.37105051]
[1644218614572,45.93443064,118.37,118.28,55.37105051]
[1644218614573,51.93443064,118.37,118.28,55.37105051]
[1644218615374,51.93443064,118.37,118.28,55.62105051]
[1644218615776,51.93443064,118.37,118.28,56.8211322]
[1644218616976,45.93443064,118.37,118.28,56.8211322]
[1644218617174,24.94095393,118.39,118.28,56.8211322]
[1644218617576,23.9904,118.39,118.29,1.20008169]
[1644218617776,23.9904,118.39,118.31,12.6728]
[1644218617976,23.9904,118.39,118.32,12.21]
[1644218618176,23.9904,118.39,118.33,38.22966096]
[1644218618576,23.9904,118.39,118.33,40.2381206]
[1644218620581,23.7404,118.39,118.33,40.2381206]
[1644218620784,23.7404,118.39,118.33,46.2381206]
[1644218621783,23.7404,118.39,118.33,40.2381206]
[1644218622383,23.7404,118.39,118.33,38.47966096]
[1644218622587,23.7404,118.39,118.33,0.25]
[1644218622784,23.9904,118.39,118.32,12.46]
[1644218622984,23.7404,118.39,118.32,12.46]
[1644218625214,23.9904,118.39,118.32,12.46]
[1644218627715,29.9904,118.39,118.32,12.46]
[1644218627915,23.7404,118.39,118.32,12.46]
[1644218630320,23.9904,118.39,118.32,12.46]
[1644218630919,23.9904,118.39,118.32,0.25]
[1644218631120,23.9904,118.39,118.3,20.21845964]
[1644218632423,29.9904,118.39,118.3,6.25]
[1644218632622,31.19095393,118.39,118.3,0.25]
[1644218632825,31.19095393,118.39,118.28,57.54608163]
[1644218633424,31.19095393,118.39,118.28,57.29608163]
[1644218633625,31.19095393,118.39,118.28,59.05454127]
[1644218634825,31.19095393,118.39,118.28,59.30454127]
[1644218635025,25.19095393,118.39,118.28,59.30454127]
[1644218635225,25.19095393,118.39,118.29,24.1394]
[1644218635428,25.19095393,118.39,118.29,36.3494]
[1644218635625,25.19095393,118.39,118.3,1.76908664]
[1644218635825,24.94095393,118.39,118.3,2.01908664]
[1644218636026,24.94095393,118.39,118.3,8.01908664]
[1644218636526,24.94095393,118.39,118.31,1.76908664]
[1644218636730,24.94095393,118.39,118.31,2.01908664]
[1644218637328,24.94095393,118.39,118.31,8.01908664]
[1644218637531,24.94095393,118.39,118.31,2.01908664]
[1644218637729,25.19095393,118.39,118.31,6.25]
[1644218637931,31.19095393,118.39,118.31,0.25]
[1644218638130,1.20055393,118.38,118.31,0.25]
[1644218638329,36.1443057,118.37,118.29,44.36848664]
[1644218638929,36.1443057,118.37,118.29,20.22908664]
[1644218640437,36.1443057,118.37,118.29,43.03408664]
[1644218642532,24.94095393,118.39,118.29,55.70878664]
[1644218643553,38.76793602,118.38,118.29,55.70878664]
[1644218643753,38.76793602,118.38,118.29,59.93378664]
[1644218645459,24.94095393,118.39,118.29,59.93378664]
[1644218645658,23.7404,118.39,118.29,61.13386833]
[1644218646658,23.7404,118.39,118.3,1.20008169]
[1644218646859,23.7404,118.39,118.31,12.21]
[1644218647061,23.7404,118.39,118.32,44.86821424]
[1644218647361,23.7404,118.39,118.33,12.21]
[1644218647561,23.7404,118.39,118.33,13.97908664]
[1644218647760,23.7404,118.39,118.33,20.22908664]
[1644218648861,23.7404,118.39,118.33,18.46]
[1644218655467,23.7404,118.39,118.33,20.22908664]
[1644218657569,23.7404,118.39,118.33,14.22908664]
[1644218661173,23.7404,118.39,118.33,0.25]
[1644218661379,24.94095393,118.39,118.31,12.21]
[1644218661573,25.19095393,118.39,118.3,1.76908664]
[1644218661773,25.19095393,118.39,118.31,1.76908664]
[1644218662573,30.94095393,118.39,118.31,1.76908664]
[1644218662774,31.19095393,118.39,118.29,1.76908664]
[1644218662974,1.20055393,118.38,118.29,1.76908664]
[1644218663174,7.20055393,118.38,118.26,59.53848169]
[1644218663374,1.20055393,118.37,118.27,6.0]
[1644218663577,45.53772918,118.36,118.26,92.93935756]
[1644218663773,22.8332,118.35,118.26,92.93935756]
[1644218664174,23.0832,118.35,118.26,93.18935756]
[1644218664576,23.0832,118.35,118.26,92.93935756]
[1644218664774,22.8332,118.35,118.26,92.93935756]
[1644218664975,23.0832,118.35,118.26,92.93935756]
[1644218665574,22.8332,118.35,118.27,1.76809329]
[1644218665975,22.8332,118.35,118.27,8.01809329]
[1644218666375,22.8332,118.35,118.28,1.76809329]
[1644218666576,22.8332,118.35,118.28,7.76809329]
[1644218666776,22.8332,118.35,118.28,8.01809329]
[1644218666976,22.8332,118.35,118.29,1.76809329]
[1644218667175,22.8332,118.35,118.3,37.76423792]
[1644218667577,22.8332,118.35,118.31,1.76809329]
[1644218667777,22.8332,118.35,118.31,2.01809329]
[1644218667979,45.53772918,118.36,118.31,2.01809329]
[1644218668277,45.53772918,118.36,118.29,6.0]
[1644218668679,45.53772918,118.36,118.28,32.27009329]
[1644218668878,45.53772918,118.36,118.29,1.76809329]
[1644218669377,45.53772918,118.36,118.29,47.97481702]
[1644218669578,45.53772918,118.36,118.29,48.22481702]
[1644218670178,45.53772918,118.36,118.29,47.97481702]
[1644218670578,45.53772918,118.36,118.29,1.76809329]
[1644218670978,45.53772918,118.36,118.28,30.502]
[1644218671182,45.78772918,118.36,118.28,30.502]
[1644218671580,45.78772918,118.36,118.28,79.10550537]
[1644218671879,45.53772918,118.36,118.28,79.10550537]
[1644218672679,45.53772918,118.36,118.28,6.25]
[1644218672879,45.78772918,118.36,118.28,6.25]
[1644218673079,45.53772918,118.36,118.28,6.25]
[1644218673483,45.53772918,118.36,118.29,1.76809329]
[1644218673783,45.53772918,118.36,118.3,36.83747205]
[1644218674081,45.53772918,118.36,118.31,1.76809329]
[1644218674381,45.53772918,118.36,118.31,0.25]
[1644218675483,45.53772918,118.36,118.28,80.39217378]
[1644218675883,45.53772918,118.36,118.31,1.76809329]
[1644218676289,45.53772918,118.36,118.31,2.01809329]
[1644218679189,45.53772918,118.36,118.31,0.25]
[1644218679390,45.78772918,118.36,118.28,68.40608049]
[1644218679591,45.78772918,118.36,118.28,68.65608049]
[1644218679989,45.53772918,118.36,118.28,68.65608049]
[1644218680191,45.53772918,118.36,118.29,1.76809329]
[1644218680589,45.53772918,118.36,118.29,2.01809329]
[1644218681396,45.53772918,118.36,118.3,1.76809329]
[1644218681791,45.53772918,118.36,118.3,0.25]
[1644218682191,51.78772918,118.36,118.3,0.25]
[1644218682792,51.78772918,118.36,118.28,44.00448049]
[1644218683092,45.53772918,118.36,118.28,44.00448049]
[1644218683592,45.53772918,118.36,118.28,45.77257378]
[1644218684392,45.78772918,118.36,118.28,6.25]
[1644218684593,45.78772918,118.36,118.28,0.25]
[1644218684795,24.9497,118.35,118.28,6.0]
[1644218685195,24.9497,118.35,118.28,6.25]
[1644218685393,24.9497,118.35,118.28,0.25]
[1644218686194,24.9497,118.35,118.27,29.4858]
[1644218686998,30.9497,118.35,118.27,29.4858]
[1644218687198,24.9497,118.35,118.27,29.4858]
[1644218687399,25.1997,118.35,118.26,25.55197498]
[1644218687598,31.1997,118.35,118.26,1.76809329]
[1644218687800,31.1997,118.35,118.25,1.20008169]
[1644218687999,30.9497,118.35,118.24,26.05467498]
[1644218688198,31.1997,118.35,118.25,1.76809329]
[1644218688399,31.1997,118.35,118.25,2.96817498]
[1644218689001,31.1997,118.35,118.25,3.21817498]
[1644218693120,31.1997,118.35,118.25,9.21817498]
[1644218693321,31.1997,118.35,118.26,23.163]
[1644218693722,31.1997,118.35,118.26,25.18057002]
[1644218697824,31.1997,118.35,118.26,26.38065171]
[1644218702527,31.1997,118.35,118.26,32.38065171]
[1644218702728,31.1997,118.35,118.26,26.38065171]
[1644218703128,31.1997,118.35,118.26,25.18057002]
[1644218704129,31.1997,118.35,118.26,26.38065171]
[1644218705831,31.1997,118.35,118.26,24.93057002]
[1644218707235,31.1997,118.35,118.26,25.18057002]
[1644218707835,31.1997,118.35,118.26,26.38065171]
[1644218708436,31.1997,118.35,118.26,25.18057002]
[1644218711439,31.1997,118.35,118.26,26.38065171]
[1644218712143,30.9497,118.35,118.26,26.38065171]
[1644218712540,66.0,118.34,118.23,6.62489295]
[1644218712742,78.21,118.34,118.25,1.20224402]
[1644218712940,1.20055393,118.33,118.23,4.226]
[1644218713140,1.20055393,118.31,118.23,4.226]
[1644218713342,5.42755393,118.3,118.23,4.226]
[1644218713539,47.78241061,118.29,118.23,4.226]
[1644218713741,48.03241061,118.29,118.23,4.226]
[1644218713941,54.03241061,118.29,118.23,4.226]
[1644218714140,52.83185668,118.29,118.23,4.226]
[1644218714640,52.58185668,118.29,118.23,0.25]
[1644218714844,36.86730404,118.27,118.21,44.86214207]
[1644218716041,36.86730404,118.27,118.17,36.89164402]
[1644218716242,24.7435,118.26,118.17,36.89164402]
[1644218716442,24.7435,118.26,118.17,35.6894]
[1644218716743,30.7435,118.26,118.17,35.6894]
[1644218717041,30.7435,118.26,118.18,47.33310607]
[1644218717242,30.7435,118.26,118.18,47.58310607]
[1644218717447,24.7435,118.26,118.18,47.58310607]
[1644218718042,24.7435,118.26,118.18,53.58310607]
[1644218719043,4.229,118.29,118.18,53.58310607]
[1644218719242,46.1531,118.3,118.19,22.8315]
[1644218719443,23.6431,118.3,118.2,12.21]
[1644218719744,23.6431,118.3,118.21,4.228]
[1644218719949,23.6431,118.3,118.21,36.553]
[1644218720145,63.7397453,118.3,118.22,44.27376736]
[1644218720344,63.7397453,118.3,118.22,56.73376736]
[1644218720546,63.7397453,118.3,118.22,62.73376736]
[1644218721148,63.7397453,118.3,118.22,6.25]
[1644218721349,63.9897453,118.3,118.22,6.25]
[1644218721546,63.9897453,118.3,118.22,0.25]
[1644218721746,63.9897453,118.3,118.22,6.0]
[1644218721947,69.9897453,118.3,118.19,12.46]
[1644218722148,82.6797453,118.3,118.19,18.46]
[1644218722348,82.6797453,118.3,118.2,48.37559327]
[1644218722847,82.4297453,118.3,118.2,48.62559327]
[1644218723448,82.4297453,118.3,118.21,23.2642]
[1644218723848,82.4297453,118.3,118.21,23.5142]
[1644218724049,82.4297453,118.3,118.21,0.25]
[1644218724550,86.9077453,118.3,118.2,48.37559327]
[1644218724950,82.6797453,118.3,118.2,48.37559327]
[1644218726054,82.6797453,118.3,118.2,48.62559327]
[1644218726253,82.6797453,118.3,118.2,0.25]
[1644218726452,106.7314453,118.3,118.16,35.3045]
[1644218726658,12.6924,118.28,118.16,35.3045]
[1644218726854,24.951,118.27,118.16,35.3045]
[1644218727254,47.60442636,118.26,118.17,40.33688423]
[1644218727456,24.951,118.25,118.17,40.33688423]
[1644218727655,44.66289731,118.24,118.17,46.58688423]
[1644218728855,44.66289731,118.24,118.17,6.25]
[1644218729755,44.66289731,118.24,118.17,0.25]
[1644218730258,44.66289731,118.24,118.14,13.69346435]
[1644218730259,44.91289731,118.24,118.14,13.69346435]
[1644218730463,44.91289731,118.24,118.12,13.41224402]
[1644218730464,50.91289731,118.24,118.12,13.41224402]
[1644218730660,50.91289731,118.24,118.12,6.0]
[1644218730661,87.68179731,118.24,118.12,6.0]
[1644218731058,87.68179731,118.24,118.11,6.0]
[1644218731258,39.94349855,118.22,118.11,6.0]
[1644218731458,45.79242571,118.2,118.12,46.73198364]
[1644218731657,51.79242571,118.2,118.12,46.73198364]
[1644218731857,51.79242571,118.2,118.12,46.98198364]
[1644218732258,45.79242571,118.2,118.12,52.98198364]
[1644218735182,45.79242571,118.2,118.12,65.19198364]
[1644218735582,45.79242571,118.2,118.12,52.98198364]
[1644218736384,45.79242571,118.2,118.12,46.98198364]
[1644218736784,45.79242571,118.2,118.12,52.98198364]
[1644218736984,45.79242571,118.2,118.12,46.98198364]
[1644218737183,45.79242571,118.2,118.12,52.98198364]
[1644218739286,45.79242571,118.2,118.12,52.73198364]
[1644218740788,45.79242571,118.2,118.12,52.98198364]
[1644218742687,45.79242571,118.2,118.12,65.19198364]
[1644218743089,45.79242571,118.2,118.12,76.67698364]
[1644218743489,24.8549,118.21,118.12,76.67698364]
[1644218743890,24.8549,118.21,118.12,77.87922766]
[1644218744490,62.0399349,118.21,118.12,77.87922766]
[1644218748398,24.8549,118.21,118.12,77.87922766]
[1644218748596,17.67239332,118.26,118.13,1.20224402]
[1644218748797,4.23,118.29,118.15,1.20224402]
[1644218748998,70.9132,118.3,118.16,17.64124402]
[1644218749197,70.9132,118.3,118.16,184.51612773]
[1644218749398,39.44246415,118.29,118.17,44.23795867]
[1644218749697,39.44246415,118.29,118.19,37.09601218]
[1644218749897,39.44246415,118.29,118.2,12.21]
[1644218750097,39.44246415,118.29,118.21,41.81792386]
[1644218750299,39.44246415,118.29,118.21,54.27792386]
[1644218750497,39.44246415,118.29,118.21,60.27792386]
[1644218752998,39.44246415,118.29,118.21,72.96102386]
[1644218755803,39.44246415,118.29,118.21,60.27792386]
[1644218756105,39.44246415,118.29,118.21,60.02792386]
[1644218756303,45.69246415,118.29,118.21,41.81792386]
[1644218756502,45.69246415,118.29,118.19,12.21]
[1644218756703,4.228,118.28,118.19,12.21]
[1644218757103,10.478,118.28,118.19,12.21]
[1644218757304,34.5655,118.28,118.19,12.46]
[1644218757603,43.58172038,118.27,118.19,12.21]
[1644218757804,43.83172038,118.27,118.19,12.21]
[1644218758103,49.83172038,118.27,118.19,12.21]
[1644218758306,49.83172038,118.27,118.18,45.01496037]
[1644218758905,49.83172038,118.27,118.18,45.26496037]
[1644218760231,49.58172038,118.27,118.18,45.26496037]
[1644218760432,43.58172038,118.27,118.18,51.26496037]
[1644218762431,49.58172038,118.27,118.18,45.26496037]
[1644218762631,43.83172038,118.27,118.18,45.26496037]
[1644218762831,43.58172038,118.27,118.18,45.26496037]
[1644218763932,43.58172038,118.27,118.2,45.86674134]
[1644218764134,24.3995,118.3,118.2,60.91774134]
[1644218764335,24.3995,118.3,118.21,12.21]
[1644218764735,24.3995,118.3,118.21,18.46]
[1644218765233,44.08777845,118.29,118.22,41.72561941]
[1644218765633,44.08777845,118.29,118.22,47.97561941]
[1644218772043,44.08777845,118.29,118.22,6.25]
[1644218772242,44.08777845,118.29,118.22,0.25]
[1644218772445,44.08777845,118.29,118.21,12.46]
[1644218773041,44.08777845,118.29,118.22,47.69383327]
[1644218773243,44.08777845,118.29,118.22,47.94383327]
[1644218773942,44.08777845,118.29,118.22,53.94383327]
[1644218775345,44.08777845,118.29,118.22,6.25]
[1644218775544,44.08777845,118.29,118.22,0.25]
[1644218775745,44.08777845,118.29,118.22,6.0]
[1644218775947,44.08777845,118.29,118.22,6.25]
[1644218776147,44.08777845,118.29,118.22,0.25]
[1644218777146,44.08777845,118.29,118.21,57.1650641]
[1644218779850,44.08777845,118.29,118.21,58.36730812]
[1644218780751,44.08777845,118.29,118.21,57.1650641]
[1644218780951,44.08777845,118.29,118.21,58.36730812]
[1644218781155,44.08777845,118.29,118.21,69.8480641]
[1644218781354,44.08777845,118.29,118.21,71.05030812]
[1644218781654,44.08777845,118.29,118.21,69.8480641]
[1644218781852,44.08777845,118.29,118.21,71.05030812]
[1644218782153,44.08777845,118.29,118.21,69.8480641]
[1644218782751,44.08777845,118.29,118.21,71.05030812]
[1644218784355,44.08777845,118.29,118.21,69.8480641]
[1644218784554,44.08777845,118.29,118.21,63.8480641]
[1644218784954,44.08777845,118.29,118.21,25.143]
[1644218785154,44.08777845,118.29,118.21,12.46]
[1644218785356,44.33777845,118.29,118.21,0.25]
[1644218785586,23.8755,118.28,118.21,0.25]
[1644218785754,24.1255,118.28,118.18,24.05094402]
[1644218785955,40.37305091,118.27,118.18,69.73292955]
[1644218786157,23.8755,118.26,118.18,69.73292955]
[1644218786355,45.05179806,118.25,118.18,69.73292955]
[1644218786555,45.05179806,118.25,118.18,68.53068553]
[1644218786956,45.05179806,118.25,118.18,22.8487]
[1644218787156,45.05179806,118.25,118.18,30.05094402]
[1644218787358,45.05179806,118.25,118.18,28.8487]
[1644218787957,45.05179806,118.25,118.18,30.05094402]
[1644218788357,45.05179806,118.25,118.18,28.8487]
[1644218788559,45.05179806,118.25,118.18,6.25]
[1644218788760,45.30179806,118.25,118.18,6.25]
[1644218788957,51.30179806,118.25,118.16,68.05209967]
[1644218789158,23.5567,118.24,118.16,68.05209967]
[1644218789360,46.71072117,118.23,118.16,66.84985565]
[1644218790357,46.71072117,118.23,118.16,67.09985565]
[1644218794962,46.71072117,118.23,118.17,39.72624612]
[1644218795163,46.71072117,118.23,118.17,45.72624612]
[1644218795365,46.71072117,118.23,118.17,45.97624612]
[1644218795562,6.0,118.25,118.17,45.97624612]
[1644218795764,24.0646,118.26,118.18,12.21]
[1644218795963,24.0646,118.26,118.18,35.9671]
[1644218796162,24.0646,118.26,118.18,42.2171]
[1644218796563,24.0646,118.26,118.19,46.08960528]
[1644218796764,43.71517152,118.25,118.19,58.54960528]
[1644218796969,43.71517152,118.25,118.19,64.54960528]
[1644218798566,61.9127,118.3,118.19,64.54960528]
[1644218798767,62.1627,118.3,118.19,64.54960528]
[1644218798969,49.4744,118.3,118.19,64.54960528]
[1644218799769,37.99363759,118.29,118.19,64.54960528]
[1644218800069,37.99363759,118.29,118.2,48.13702054]
[1644218800268,38.24363759,118.29,118.21,46.87881425]
[1644218800688,38.24363759,118.29,118.21,47.12881425]
[1644218801090,44.24363759,118.29,118.21,53.12881425]
[1644218801290,38.24363759,118.29,118.21,53.12881425]
[1644218802591,38.24363759,118.29,118.21,47.12881425]
[1644218803191,37.99363759,118.29,118.21,47.12881425]
[1644218803794,37.99363759,118.29,118.21,0.25]
[1644218803994,24.1278,118.28,118.2,54.38702054]
[1644218804799,47.00070522,118.27,118.2,99.24867263]
[1644218804997,47.00070522,118.27,118.2,93.24867263]
[1644218807206,47.00070522,118.27,118.2,48.38702054]
[1644218807607,53.00070522,118.27,118.2,48.38702054]
[1644218808312,53.00070522,118.27,118.2,0.25]
[1644218808313,53.25070522,118.27,118.2,0.25]
[1644218808507,34.54921106,118.25,118.2,0.25]
[1644218808708,40.54921106,118.25,118.18,76.02332632]
[1644218809910,34.54921106,118.25,118.18,76.02332632]
[1644218811208,34.54921106,118.25,118.18,70.02332632]
[1644218811408,34.54921106,118.25,118.18,77.22557034]
[1644218812610,34.54921106,118.25,118.18,76.02332632]
[1644218812812,34.54921106,118.25,118.18,77.22557034]
[1644218813112,34.54921106,118.25,118.18,76.02332632]
[1644218813610,34.54921106,118.25,118.18,77.22557034]
[1644218814611,34.54921106,118.25,118.18,76.02332632]
[1644218814812,34.54921106,118.25,118.18,77.22557034]
[1644218815412,34.54921106,118.25,118.18,76.02332632]
[1644218817419,34.54921106,118.25,118.18,77.22557034]
[1644218817817,22.8841,118.26,118.18,77.22557034]
[1644218817818,22.8841,118.26,118.18,91.18949605]
[1644218818018,22.8841,118.26,118.19,1.20224402]
[1644218818221,24.2446,118.3,118.19,7.45224402]
[1644218818418,48.7071,118.3,118.2,25.30194402]
[1644218818618,48.7071,118.3,118.2,31.30194402]
[1644218818819,34.63590247,118.29,118.21,48.46516499]
[1644218819119,34.63590247,118.29,118.23,42.04090501]
[1644218819418,34.63590247,118.29,118.23,0.25]
[1644218819820,34.63590247,118.29,118.19,61.54926456]
[1644218819821,23.9345,118.28,118.2,6.0]
[1644218820420,44.37012409,118.27,118.21,42.97044007]
[1644218821224,44.37012409,118.27,118.21,43.22044007]
[1644218822225,44.37012409,118.27,118.21,49.22044007]
[1644218822424,44.37012409,118.27,118.21,43.22044007]
[1644218822925,44.37012409,118.27,118.21,49.22044007]
[1644218824325,44.37012409,118.27,118.21,43.22044007]
[1644218826230,23.9345,118.28,118.21,49.22044007]
[1644218826432,23.9345,118.28,118.21,61.43044007]
[1644218826864,23.9345,118.28,118.21,62.63268409]
[1644218827054,23.9345,118.28,118.21,72.98268409]
[1644218827454,23.9345,118.28,118.21,77.21068409]
[1644218828056,23.9345,118.28,118.21,89.89378409]
[1644218828454,23.9345,118.28,118.21,85.66578409]
[1644218828654,66.08432024,118.28,118.21,85.66578409]
[1644218828854,66.08432024,118.28,118.21,61.43044007]
[1644218829054,66.08432024,118.28,118.21,55.43044007]
[1644218831060,66.08432024,118.28,118.21,0.25]
[1644218831362,66.08432024,118.28,118.2,24.6259]
[1644218832161,66.08432024,118.28,118.21,46.83460783]
[1644218832364,66.08432024,118.28,118.21,47.08460783]
[1644218841068,66.08432024,118.28,118.21,53.08460783]
[1644218842468,23.9345,118.28,118.21,53.08460783]
[1644218847273,25.44515393,118.3,118.21,53.08460783]
[1644218847274,24.2446,118.3,118.21,66.49685185]
[1644218847473,47.8168,118.3,118.22,24.01944402]
[1644218847673,47.8168,118.3,118.23,12.21]
[1644218847873,23.5722,118.3,118.23,23.28624402]
[1644218848074,23.5722,118.3,118.24,38.22651938]
[1644218848372,23.5722,118.3,118.24,38.47651938]
[1644218848578,41.29265973,118.33,118.24,44.47651938]
[1644218848773,40.0921058,118.33,118.26,44.11621427]
[1644218849273,41.29265973,118.33,118.26,44.36621427]
[1644218850076,40.0921058,118.33,118.26,44.36621427]
[1644218853778,41.29265973,118.33,118.26,44.36621427]
[1644218853977,40.0921058,118.33,118.26,44.36621427]
[1644218854380,40.0921058,118.33,118.26,44.11621427]
[1644218855881,40.0921058,118.33,118.26,44.36621427]
[1644218860384,40.0921058,118.33,118.26,56.94521427]
[1644218861786,40.0921058,118.33,118.26,56.69521427]
[1644218863285,40.0921058,118.33,118.26,56.94521427]
[1644218865793,40.0921058,118.33,118.26,12.829]
[1644218865992,40.0921058,118.33,118.26,0.25]
[1644218866195,23.4572,118.32,118.26,0.25]
[1644218866392,23.4572,118.32,118.24,23.517]
[1644218866593,23.4572,118.32,118.24,29.517]
[1644218866992,23.4572,118.32,118.24,6.25]
[1644218867193,29.7072,118.32,118.24,0.25]
[1644218867593,12.21,118.31,118.22,29.9673]
[1644218867793,18.46,118.31,118.22,23.9673]
[1644218868093,46.01153904,118.29,118.22,63.40604541]
[1644218868293,23.0718,118.28,118.22,63.40604541]
[1644218870998,23.0718,118.28,118.22,69.40604541]
[1644218872500,44.22744858,118.3,118.22,69.40604541]
[1644218872702,68.24644858,118.3,118.22,69.40604541]
[1644218873600,68.24644858,118.3,118.22,81.61604541]
[1644218874001,24.019,118.3,118.22,81.61604541]
[1644218874202,24.019,118.3,118.22,82.81828943]
[1644218877623,24.019,118.3,118.22,82.56828943]
[1644218879126,24.019,118.3,118.22,82.81828943]
[1644218882128,24.019,118.3,118.22,130.95530997]
[1644218884231,24.019,118.3,118.22,132.70485345]
[1644218886431,24.019,118.3,118.23,1.20224402]
[1644218886633,24.019,118.3,118.23,7.20224402]
[1644218886833,24.019,118.3,118.23,7.45224402]
[1644218887032,24.019,118.3,118.23,19.66224402]
[1644218888234,24.019,118.3,118.23,7.45224402]
[1644218891537,24.019,118.3,118.23,7.20224402]
[1644218891740,24.019,118.3,118.22,64.35828943]
[1644218891939,24.019,118.3,118.22,70.35828943]
[1644218892338,24.019,118.3,118.22,64.35828943]
[1644218892938,24.019,118.3,118.22,64.60828943]
[1644218894842,24.019,118.3,118.22,82.81828943]
[1644218895241,24.019,118.3,118.22,95.50028943]
[1644218895440,1.20055393,118.33,118.22,97.24983291]
[1644218895642,24.6829,118.35,118.25,1.20224402]
[1644218895941,24.6829,118.35,118.26,12.21]
[1644218896143,24.6829,118.35,118.27,24.9014]
[1644218896343,24.6829,118.35,118.27,67.69459282]
[1644218896543,24.6829,118.35,118.27,73.69459282]
[1644218896745,30.6829,118.35,118.27,73.69459282]
[1644218896942,30.6829,118.35,118.27,86.37169282]
[1644218897543,30.6829,118.35,118.27,73.69459282]
[1644218897745,30.6829,118.35,118.27,67.69459282]
[1644218899846,30.6829,118.35,118.27,73.69459282]
[1644218903548,30.9329,118.35,118.27,6.25]
[1644218903749,30.9329,118.35,118.27,0.25]
[1644218904250,30.9329,118.35,118.24,24.6823]
[1644218904449,4.226,118.34,118.23,7.20224402]
[1644218904652,35.62621347,118.32,118.23,6.0]
[1644218904848,60.28741347,118.32,118.23,6.0]
[1644218905049,66.28741347,118.32,118.21,131.88349298]
[1644218905853,66.03741347,118.32,118.21,131.88349298]
[1644218906051,66.03741347,118.32,118.21,133.085737]
[1644218906452,66.03741347,118.32,118.22,22.6172]
[1644218906653,66.03741347,118.32,118.22,28.6172]
[1644218906853,66.03741347,118.32,118.22,28.8672]
[1644218907453,66.28741347,118.32,118.22,28.8672]
[1644218909154,66.03741347,118.32,118.22,28.8672]
[1644218910675,66.03741347,118.32,118.22,30.06944402]